fUSD/lending_fUSD_20241101
["ID","MTS","AMOUNT","RATE_DAILY","PERIOD"]
[341141165,1730471433783,-899.14,0.00041357,3]
[341141166,1730471433793,-500.0,0.00041357,3]
[341141167,1730471433803,-2578.28,0.00041357,3]
[341141168,1730471433813,-500.0,0.00041357,3]
[341141169,1730471433822,-500.0,0.00041357,3]
[341141170,1730471433831,-577.06,0.00041357,3]
[341141171,1730471433841,-554.44,0.00041357,3]
[341141172,1730471433851,-968.7,0.00041357,3]
[341141173,1730471433862,-798.52,0.00041357,3]
[341141174,1730471433871,-500.0,0.00041357,3]
[341141175,1730471433882,-793.45,0.00041357,3]
[341141176,1730471433891,-500.0,0.00041357,3]
[341141177,1730471433900,-861.33,0.00041357,3]
[341141178,1730471433910,-500.0,0.00041357,3]
[341141179,1730471433920,-597.07688968,0.00041357,3]
[341141180,1730471433930,-1279.53,0.00041357,3]
[341141181,1730471433941,-500.0,0.00041357,3]
[341141182,1730471433950,-500.0,0.00041357,3]
[341141183,1730471433961,-500.0,0.00041357,3]
[341141184,1730471433971,-500.0,0.00041357,3]
[341141185,1730471433982,-500.0,0.00041357,3]
[341141186,1730471433993,-500.0,0.00041357,3]
[341141187,1730471434002,-500.0,0.00041357,3]
[341141188,1730471434012,-500.0,0.00041357,3]
[341141189,1730471434022,-500.0,0.00041357,3]
[341141190,1730471434032,-500.0,0.00041357,3]
[341141191,1730471434040,-1278.47,0.00041357,3]
[341141192,1730471434049,-452.03574181,0.00041357,3]
[341141193,1730471434058,-1036.41,0.00041357,3]
[341141194,1730471434068,-500.0,0.00041357,3]
[341141195,1730471434077,-500.0,0.00041369,3]
[341141196,1730471434086,-500.0,0.00041369,3]
[341141197,1730471434095,-2376.25,0.00041369,3]
[341141198,1730471434105,-500.0,0.00041369,3]
[341141199,1730471434114,-500.0,0.00041369,3]
[341141200,1730471434123,-548.4,0.00041369,3]
[341141201,1730471434133,-500.0,0.00041369,3]
[341141202,1730471434142,-500.0,0.00041369,3]
[341141203,1730471434151,-500.0,0.00041369,3]
[341141204,1730471434160,-1001.26,0.00041369,3]
[341141205,1730471434170,-886.16,0.00041369,3]
[341141206,1730471434179,-500.0,0.00041369,3]
[341141207,1730471434188,-500.0,0.00041369,3]
[341141208,1730471434198,-1396.84,0.00041369,3]
[341141209,1730471434209,-643.15,0.00041369,3]
[341141210,1730471434218,-500.0,0.00041369,3]
[341141211,1730471434228,-182.59,0.00041439,2]
[341141212,1730471434237,-434.9509084,0.00041476,2]
[341141213,1730471434247,-526.74214858,0.00041497,3]
[341141214,1730471434256,-896.9798384,0.00041497,3]
[341141215,1730471434265,-40903.76235059,0.00041497,3]
[341141216,1730471434277,-6226.39491147,0.00041497,3]
[341141217,1730471434292,-7071.97,0.00041497,3]
[341141226,1730471438131,-539.84,0.0003999,10]
[341141228,1730471438143,-209.22,0.0003999,10]
[341141230,1730471438153,-180.404,0.00040933,2]
[341141232,1730471438163,-135.766,0.00041095,3]
[341141233,1730471438269,-356.07209,0.00041095,3]
[341141234,1730471438439,-8.16191,0.00041095,3]
[341141235,1730471438448,-500.0,0.00041356,3]
[341141236,1730471438458,-216.93148041,0.00041369,3]
[341141237,1730471438468,-32965.34847943,0.00041497,3]
[341141238,1730471438478,-744.26276314,0.00041498,3]
[341141239,1730471438487,-896.9798384,0.00041518,3]
[341141240,1730471438497,-967.21000147,0.00041528,3]
[341141241,1730471438507,-526.74214858,0.00041532,3]
[341141242,1730471438517,-744.26276314,0.0004154,3]
[341141243,1730471438527,-896.9798384,0.00041549,3]
[341141244,1730471438537,-2000.0,0.00041561,7]
[341141245,1730471438546,-200.0,0.00041561,7]
[341141246,1730471438556,-13270.0868127,0.00041564,2]
[341141247,1730471438565,-967.21000147,0.00041572,3]
[341141248,1730471438575,-160.61596777,0.00041573,7]
[341141249,1730471438584,-744.26276314,0.00041573,3]
[341141250,1730471438594,-8326.10036125,0.00041575,3]
[341141251,1730471438604,-500.0,0.00041576,3]
[341141252,1730471438617,-500.0,0.00041576,3]
[341141253,1730471438626,-500.0,0.00041576,3]
[341141254,1730471438636,-500.0,0.00041576,3]
[341141255,1730471438645,-500.0,0.00041576,3]
[341141256,1730471438654,-500.0,0.00041576,3]
[341141257,1730471438663,-500.0,0.00041576,3]
[341141258,1730471438673,-500.0,0.00041576,3]
[341141259,1730471438683,-467.30859286,0.00041576,3]
[341141260,1730471438693,-500.0,0.00041576,3]
[341141261,1730471438703,-500.0,0.00041576,3]
[341141262,1730471438713,-170.0,0.00041576,3]
[341141263,1730471438723,-500.0,0.00041576,3]
[341141264,1730471438732,-500.0,0.00041576,3]
[341141265,1730471438741,-592.95,0.00041576,3]
[341141266,1730471438751,-980.67,0.00041576,3]
[341141267,1730471438760,-500.0,0.00041576,3]
[341141268,1730471438769,-1167.89,0.00041576,3]
[341141269,1730471438778,-1204.55,0.00041576,3]
[341141270,1730471438788,-500.0,0.00041576,3]
[341141271,1730471438797,-500.0,0.00041576,3]
[341141272,1730471438807,-500.0,0.00041576,3]
[341141273,1730471438815,-500.0,0.00041576,3]
[341141274,1730471438825,-704.73,0.00041576,3]
[341141275,1730471438834,-829.99,0.00041576,3]
[341141276,1730471438843,-500.0,0.00041576,3]
[341141277,1730471438852,-500.0,0.00041576,3]
[341141278,1730471438861,-2220.69,0.00041576,3]
[341141279,1730471438871,-500.0,0.00041576,3]
[341141280,1730471438880,-500.0,0.00041576,3]
[341141281,1730471438890,-1235.62,0.00041576,3]
[341141282,1730471438899,-500.0,0.00041576,3]
[341141283,1730471438908,-500.0,0.00041576,3]
[341141284,1730471438917,-500.0,0.00041576,3]
[341141285,1730471438926,-500.0,0.00041576,3]
[341141286,1730471438936,-720.99,0.00041576,3]
[341141287,1730471438945,-510.44,0.00041576,3]
[341141288,1730471438954,-500.0,0.00041576,3]
[341141289,1730471438966,-514.92995478,0.00041576,3]
[341141290,1730471438975,-500.0,0.00041576,3]
[341141291,1730471438983,-500.0,0.00041576,3]
[341141292,1730471438992,-500.0,0.00041576,3]
[341141293,1730471439001,-500.0,0.00041576,3]
[341141294,1730471439010,-500.0,0.00041576,3]
[341141295,1730471439019,-500.0,0.00041576,3]
[341141296,1730471439028,-500.0,0.00041576,3]
[341141297,1730471439038,-500.0,0.00041576,3]
[341141298,1730471439046,-500.0,0.00041576,3]
[341141299,1730471439056,-500.0,0.00041576,3]
[341141300,1730471439065,-500.0,0.00041576,3]
[341141301,1730471439074,-500.0,0.00041576,3]
[341141302,1730471439083,-500.0,0.00041576,3]
[341141303,1730471439092,-698.55,0.00041576,3]
[341141304,1730471439102,-585.2,0.00041576,3]
[341141305,1730471439111,-500.0,0.00041576,3]
[341141306,1730471439121,-500.0,0.00041576,3]
[341141307,1730471439130,-500.0,0.00041576,3]
[341141308,1730471439140,-500.0,0.00041576,3]
[341141309,1730471439149,-1060.08,0.00041576,3]
[341141310,1730471439158,-500.0,0.00041576,3]
[341141311,1730471439167,-500.0,0.00041576,3]
[341141312,1730471439177,-1010.74,0.00041576,3]
[341141313,1730471439186,-869.04,0.00041576,3]
[341141314,1730471439277,-500.0,0.00041576,3]
[341141315,1730471439287,-793.5,0.00041576,3]
[341141316,1730471439296,-500.0,0.00041576,3]
[341141317,1730471439306,-500.0,0.00041576,3]
[341141318,1730471439315,-500.0,0.00041576,3]
[341141319,1730471439324,-469.02310809,0.00041576,3]
[341141320,1730471439333,-500.0,0.00041576,3]
[341141321,1730471439343,-500.0,0.00041576,3]
[341141322,1730471439352,-500.0,0.00041576,3]
[341141323,1730471439361,-500.0,0.00041576,3]
[341141324,1730471439371,-500.0,0.00041576,3]
[341141325,1730471439380,-866.45,0.00041576,3]
[341141326,1730471439389,-500.0,0.00041576,3]
[341141327,1730471439399,-2701.97,0.00041576,3]
[341141328,1730471439408,-500.0,0.00041576,3]
[341141329,1730471439417,-500.0,0.00041576,3]
[341141330,1730471439427,-1537.58,0.00041576,3]
[341141331,1730471439436,-500.0,0.00041576,3]
[341141332,1730471439445,-500.0,0.00041576,3]
[341141333,1730471439455,-500.0,0.00041576,3]
[341141334,1730471439466,-500.0,0.00041576,3]
[341141335,1730471439476,-500.0,0.00041576,3]
[341141336,1730471439486,-500.0,0.00041576,3]
[341141337,1730471439495,-500.0,0.00041576,3]
[341141338,1730471439505,-500.0,0.00041576,3]
[341141339,1730471439514,-500.0,0.00041576,3]
[341141340,1730471439523,-500.0,0.00041576,3]
[341141341,1730471439532,-707.82,0.00041576,3]
[341141342,1730471439542,-578.08,0.00041576,3]
[341141343,1730471439551,-763.2,0.00041576,3]
[341141344,1730471439561,-500.0,0.00041576,3]
[341141345,1730471439570,-2156.77,0.00041576,3]
[341141346,1730471439579,-500.0,0.00041576,3]
[341141347,1730471439589,-500.0,0.00041576,3]
[341141348,1730471439599,-500.0,0.00041576,3]
[341141349,1730471439611,-500.0,0.00041576,3]
[341141350,1730471439621,-724.5,0.00041576,3]
[341141351,1730471439630,-521.67,0.00041576,3]
[341141352,1730471439639,-500.0,0.00041576,3]
[341141353,1730471439649,-575.99,0.00041576,3]
[341141354,1730471439659,-500.0,0.00041576,3]
[341141355,1730471439669,-500.0,0.00041576,3]
[341141356,1730471439679,-648.18054593,0.00041576,3]
[341141357,1730471439688,-500.0,0.00041576,3]
[341141358,1730471439698,-1269.63,0.00041576,3]
[341141359,1730471439709,-887.42,0.00041576,3]
[341141360,1730471439719,-500.0,0.00041577,120]
[341141361,1730471439728,-616.44,0.00041577,3]
[341141362,1730471439738,-862.89,0.00041577,3]
[341141363,1730471439748,-500.0,0.00041577,3]
[341141364,1730471439757,-500.0,0.00041577,3]
[341141365,1730471439766,-500.0,0.00041577,3]
[341141366,1730471439775,-500.0,0.00041577,3]
[341141367,1730471439785,-500.0,0.00041577,3]
[341141368,1730471439795,-500.0,0.00041577,3]
[341141369,1730471439804,-673.59,0.00041577,3]
[341141370,1730471439813,-500.0,0.00041577,3]
[341141371,1730471439822,-500.0,0.00041577,3]
[341141372,1730471439832,-500.0,0.00041577,3]
[341141373,1730471439841,-500.0,0.00041577,3]
[341141374,1730471439850,-500.0,0.00041577,3]
[341141375,1730471439860,-500.0,0.00041577,3]
[341141376,1730471439869,-500.0,0.00041577,3]
[341141377,1730471439879,-500.0,0.00041577,3]
[341141378,1730471439888,-720.09,0.00041577,3]
[341141380,1730471439898,-500.0,0.00041577,3]
[341141381,1730471439909,-625.0,0.00041577,3]
[341141382,1730471439920,-500.0,0.00041577,3]
[341141383,1730471439930,-500.0,0.00041577,3]
[341141384,1730471439939,-500.0,0.00041577,3]
[341141385,1730471439949,-500.0,0.00041577,3]
[341141387,1730471439958,-1105.92,0.00041577,3]
[341141389,1730471439968,-500.0,0.00041577,3]
[341141390,1730471439977,-500.0,0.00041577,3]
[341141392,1730471439987,-500.0,0.00041577,3]
[341141393,1730471439996,-566.79,0.00041577,3]
[341141394,1730471440008,-500.0,0.00041577,3]
[341141395,1730471440018,-500.0,0.00041577,3]
[341141396,1730471440028,-500.0,0.00041577,3]
[341141397,1730471440038,-687.47,0.00041577,3]
[341141398,1730471440050,-1413.29,0.00041577,3]
[341141399,1730471440059,-500.0,0.00041577,3]
[341141400,1730471440070,-500.0,0.00041577,3]
[341141401,1730471440079,-2357.59,0.00041577,3]
[341141402,1730471440089,-2218.01,0.00041577,3]
[341141403,1730471440098,-1643.51,0.00041577,3]
[341141404,1730471440107,-500.0,0.00041577,3]
[341141405,1730471440117,-500.0,0.00041577,3]
[341141406,1730471440126,-500.0,0.00041577,3]
[341141407,1730471440135,-507.05,0.00041577,3]
[341141408,1730471440144,-605.62,0.00041577,3]
[341141409,1730471440154,-713.19,0.00041577,3]
[341141410,1730471440163,-500.0,0.00041577,3]
[341141411,1730471440172,-500.0,0.00041577,3]
[341141413,1730471440181,-500.0,0.00041577,3]
[341141415,1730471440190,-500.0,0.00041577,3]
[341141417,1730471440199,-500.0,0.00041577,3]
[341141418,1730471440209,-500.0,0.00041577,3]
[341141420,1730471440218,-500.0,0.00041577,3]
[341141422,1730471440227,-500.0,0.00041577,3]
[341141423,1730471440236,-500.0,0.00041577,3]
[341141425,1730471440245,-500.0,0.00041577,3]
[341141427,1730471440254,-500.0,0.00041577,3]
[341141428,1730471440263,-500.0,0.00041577,3]
[341141430,1730471440273,-500.0,0.00041577,3]
[341141432,1730471440282,-151.149859,0.00041577,14]
[341141433,1730471440291,-500.0,0.00041577,3]
[341141434,1730471440300,-500.0,0.00041577,3]
[341141435,1730471440309,-151.0,0.00041577,14]
[341141436,1730471440319,-151.0,0.00041577,14]
[341141437,1730471440328,-151.0,0.00041577,14]
[341141438,1730471440337,-151.0,0.00041577,14]
[341141439,1730471440346,-151.0,0.00041577,14]
[341141440,1730471440355,-151.0,0.00041577,14]
[341141441,1730471440364,-154.886788,0.00041577,14]
[341141442,1730471440373,-151.0,0.00041577,14]
[341141443,1730471440382,-151.0,0.00041577,14]
[341141444,1730471440391,-151.0,0.00041577,14]
[341141445,1730471440400,-151.0,0.00041577,14]
[341141446,1730471440409,-151.0,0.00041577,14]
[341141447,1730471440419,-151.0,0.00041577,14]
[341141448,1730471440428,-151.0,0.00041577,14]
[341141449,1730471440437,-151.0,0.00041577,14]
[341141450,1730471440446,-221.731493,0.00041577,14]
[341141451,1730471440455,-151.0,0.00041577,14]
[341141452,1730471440469,-744.26276314,0.00041578,3]
[341141453,1730471440478,-500.0,0.00041578,3]
[341141454,1730471440488,-500.0,0.00041578,3]
[341141455,1730471440497,-593.72133366,0.00041578,3]
[341141456,1730471440506,-500.0,0.00041578,3]
[341141457,1730471440515,-500.0,0.00041578,3]
[341141458,1730471440526,-500.0,0.00041578,3]
[341141459,1730471440535,-508.31500016,0.00041578,3]
[341141460,1730471440544,-500.0,0.00041578,3]
[341141461,1730471440554,-500.0,0.00041578,3]
[341141462,1730471440634,-500.0,0.00041578,3]
[341141463,1730471440644,-500.0,0.00041578,3]
[341141464,1730471440656,-500.0,0.00041578,3]
[341141465,1730471440665,-151.0,0.00041578,14]
[341141467,1730471440674,-151.0,0.00041578,14]
[341141469,1730471440684,-151.0,0.00041578,14]
[341141471,1730471440694,-265.167348,0.00041578,14]
[341141472,1730471440703,-265.167348,0.00041578,14]
[341141474,1730471440714,-151.0,0.00041578,14]
[341141477,1730471440723,-151.0,0.00041578,14]
[341141478,1730471440733,-151.0,0.00041578,14]
[341141480,1730471440742,-151.0,0.00041578,7]
[341141482,1730471440751,-151.0,0.00041578,14]
[341141484,1730471440760,-151.0,0.00041578,14]
[341141486,1730471440770,-151.0,0.00041578,14]
[341141488,1730471440780,-151.0,0.00041578,14]
[341141490,1730471440790,-151.0,0.00041578,14]
[341141492,1730471440800,-151.0,0.00041578,14]
[341141494,1730471440810,-151.0,0.00041578,14]
[341141496,1730471440820,-151.0,0.00041578,14]
[341141498,1730471440831,-151.0,0.00041578,14]
[341141500,1730471440840,-151.0,0.00041578,14]
[341141502,1730471440849,-157.441153,0.00041578,14]
[341141504,1730471440860,-151.0,0.00041578,14]
[341141506,1730471440870,-87167.47574149,0.00041591,3]
[341141508,1730471440880,-87167.47574149,0.00041596,3]
[341141510,1730471440889,-2671.6162,0.000416,2]
[341141512,1730471440898,-2600.0,0.000416,15]
[341141514,1730471440908,-526.74214858,0.00041605,3]
[341141516,1730471440917,-8326.10036125,0.00041608,3]
[341141518,1730471440926,-526.74214858,0.0004161,3]
[341141520,1730471440936,-1179.81380315,0.00041615,2]
[341141522,1730471440945,-526.74214858,0.00041629,3]
[341141524,1730471440955,-500.0,0.0004163,3]
[341141526,1730471440966,-541.24,0.0004163,3]
[341141528,1730471440975,-1259.39,0.0004163,3]
[341141530,1730471440985,-767.65,0.0004163,3]
[341141532,1730471440993,-567.94,0.0004163,3]
[341141534,1730471441003,-500.0,0.0004163,3]
[341141536,1730471441012,-514.96,0.0004163,3]
[341141538,1730471441021,-500.0,0.0004163,3]
[341141540,1730471441031,-500.0,0.00041631,3]
[341141542,1730471441040,-899.14,0.00041631,3]
[341141544,1730471441050,-500.0,0.00041631,3]
[341141546,1730471441059,-2578.28,0.00041631,3]
[341141548,1730471441068,-500.0,0.00041631,3]
[341141549,1730471441078,-500.0,0.00041631,3]
[341141551,1730471441087,-577.06,0.00041631,3]
[341141553,1730471441096,-554.44,0.00041631,3]
[341141555,1730471441105,-968.7,0.00041631,3]
[341141557,1730471441115,-798.52,0.00041631,3]
[341141559,1730471441124,-500.0,0.00041631,3]
[341141561,1730471441134,-500.0,0.00041631,3]
[341141563,1730471441143,-861.33,0.00041631,3]
[341141565,1730471441153,-500.0,0.00041631,3]
[341141567,1730471441162,-1279.53,0.00041631,3]
[341141569,1730471441171,-500.0,0.00041631,3]
[341141571,1730471441180,-500.0,0.00041631,3]
[341141573,1730471441189,-500.0,0.00041631,3]
[341141574,1730471441199,-500.0,0.00041631,3]
[341141577,1730471441209,-500.0,0.00041631,3]
[341141579,1730471441219,-500.0,0.00041631,3]
[341141581,1730471441228,-500.0,0.00041631,3]
[341141583,1730471441238,-1278.47,0.00041631,3]
[341141584,1730471441248,-1036.41,0.00041631,3]
[341141586,1730471441257,-500.0,0.00041631,3]
[341141588,1730471441267,-13270.0868127,0.00041633,2]
[341141590,1730471441276,-8326.10036125,0.00041639,3]
[341141592,1730471441286,-500.0,0.00041643,3]
[341141594,1730471441295,-500.0,0.00041643,3]
[341141596,1730471441305,-2376.25,0.00041643,3]
[341141598,1730471441314,-278.27,0.00041643,3]
[341141600,1730471441323,-500.0,0.00041643,3]
[341141602,1730471441333,-500.0,0.00041643,3]
[341141604,1730471441342,-500.0,0.00041643,3]
[341141606,1730471441352,-583.95710442,0.00041643,3]
[341141608,1730471441361,-1001.26,0.00041643,3]
[341141610,1730471441370,-886.16,0.00041643,3]
[341141612,1730471441379,-500.0,0.00041643,3]
[341141614,1730471441388,-500.0,0.00041643,3]
[341141616,1730471441398,-1396.84,0.00041643,3]
[341141618,1730471441407,-643.15,0.00041643,3]
[341141620,1730471441416,-87167.47574149,0.00041644,3]
[341141622,1730471441425,-896.9798384,0.00041653,3]
[341141624,1730471441434,-896.9798384,0.0004166,3]
[341141626,1730471441444,-13270.0868127,0.00041663,2]
[341141628,1730471441453,-8326.10036125,0.00041668,3]
[341141630,1730471441463,-967.21000147,0.00041668,3]
[341141632,1730471441473,-967.21000147,0.00041683,3]
[341141634,1730471441482,-8326.10036125,0.00041684,3]
[341141636,1730471441491,-1179.81380315,0.00041686,2]
[341141638,1730471441501,-262.92754314,0.0004169,2]
[341141640,1730471441510,-87167.47574149,0.00041692,3]
[341141641,1730471441519,-744.26276314,0.00041693,3]
[341141643,1730471441528,-967.21000147,0.000417,3]
[341141645,1730471441538,-5200.0,0.000417,15]
[341141647,1730471441548,-150.0,0.00041724,2]
[341141649,1730471441557,-150.0,0.00041728,2]
[341141651,1730471441567,-1500.0,0.00041729,7]
[341141653,1730471441576,-150.0,0.00041731,2]
[341141655,1730471441586,-150.0,0.00041732,2]
[341141657,1730471441596,-168.91027855,0.00041733,28]
[341141659,1730471441606,-150.0,0.00041737,2]
[341141661,1730471441618,-400.1465,0.00041739,14]
[341141663,1730471441628,-150.0,0.0004174,2]
[341141665,1730471441637,-150.0,0.00041743,2]
[341141667,1730471441646,-150.0,0.00041746,2]
[341141669,1730471441658,-150.0,0.00041746,2]
[341141671,1730471441666,-150.0,0.0004175,2]
[341141673,1730471441675,-150.0,0.00041751,2]
[341141674,1730471441685,-150.0,0.00041756,2]
[341141675,1730471441694,-150.0,0.00041758,2]
[341141676,1730471441704,-150.0,0.00041758,2]
[341141677,1730471441714,-150.84,0.00041759,2]
[341141678,1730471441724,-150.0,0.0004176,2]
[341141679,1730471441733,-2905.83,0.00041761,2]
[341141680,1730471441743,-150.0,0.00041761,2]
[341141681,1730471441752,-151.0,0.00041761,14]
[341141682,1730471441762,-277.912624,0.00041761,14]
[341141684,1730471441772,-151.0,0.00041761,14]
[341141686,1730471441781,-151.0,0.00041761,14]
[341141688,1730471441791,-151.0,0.00041761,14]
[341141690,1730471441800,-151.0,0.00041761,14]
[341141692,1730471441809,-159.708491,0.00041761,14]
[341141701,1730471441886,-150.0,0.00041762,2]
[341141703,1730471441895,-150.0,0.00041762,2]
[341141705,1730471441905,-150.0,0.00041764,2]
[341141707,1730471441914,-150.0,0.00041766,2]
[341141709,1730471441923,-150.0,0.00041768,2]
[341141711,1730471441933,-150.0,0.00041768,2]
[341141713,1730471441942,-150.0,0.00041769,2]
[341141715,1730471441952,-1500.0,0.00041769,7]
[341141717,1730471441961,-150.0,0.00041773,2]
[341141719,1730471441971,-150.0,0.00041774,2]
[341141721,1730471441980,-150.0,0.00041779,2]
[341141723,1730471441991,-1000.01918049,0.0004178,2]
[341141725,1730471442000,-150.0,0.00041785,2]
[341141727,1730471442010,-1551.82761493,0.00041785,7]
[341141729,1730471442019,-150.0,0.00041788,2]
[341141731,1730471442028,-150.0,0.00041788,2]
[341141733,1730471442037,-150.0,0.00041791,2]
[341141735,1730471442047,-150.0,0.00041792,2]
[341141737,1730471442056,-150.0,0.00041794,2]
[341141739,1730471442065,-150.0,0.00041795,2]
[341141741,1730471442075,-150.0,0.00041798,2]
[341141743,1730471442083,-150.0,0.000418,2]
[341141745,1730471442093,-150.0,0.000418,2]
[341141747,1730471442102,-7800.0,0.000418,15]
[341141749,1730471442111,-237.115736,0.000418,14]
[341141751,1730471442120,-151.0,0.000418,14]
[341141753,1730471442129,-151.0,0.000418,14]
[341141755,1730471442138,-179.0,0.00041801,7]
[341141757,1730471442147,-150.0,0.00041801,2]
[341141759,1730471442157,-150.0,0.00041801,2]
[341141761,1730471442166,-298.30041981,0.00041801,7]
[341141763,1730471442175,-150.0,0.00041809,2]
[341141765,1730471442184,-150.0,0.0004181,2]
[341141767,1730471442194,-150.0,0.00041811,2]
[341141769,1730471442203,-150.0,0.00041813,2]
[341141771,1730471442213,-150.0,0.00041818,2]
[341141773,1730471442222,-150.0,0.00041823,2]
[341141775,1730471442231,-150.0,0.00041825,2]
[341141777,1730471442240,-150.0,0.00041827,2]
[341141779,1730471442250,-150.0,0.00041828,2]
[341141781,1730471442259,-150.0,0.00041828,2]
[341141783,1730471442268,-150.0,0.0004183,2]
[341141785,1730471442278,-150.0,0.00041835,2]
[341141787,1730471442287,-150.0,0.00041836,2]
[341141789,1730471442297,-150.0,0.00041839,2]
[341141791,1730471442306,-150.0,0.0004184,2]
[341141793,1730471442315,-150.0,0.00041841,2]
[341141795,1730471442324,-150.0,0.00041843,2]
[341141797,1730471442335,-150.0,0.00041844,2]
[341141799,1730471442343,-150.0,0.00041845,2]
[341141801,1730471442353,-150.0,0.00041847,2]
[341141803,1730471442363,-150.0,0.00041849,2]
[341141805,1730471442372,-150.0,0.00041849,7]
[341141807,1730471442381,-500.0,0.0004185,3]
[341141809,1730471442390,-500.0,0.0004185,3]
[341141811,1730471442399,-500.0,0.0004185,3]
[341141813,1730471442408,-151.0,0.0004185,14]
[341141815,1730471442417,-151.0,0.0004185,14]
[341141817,1730471442427,-151.0,0.0004185,14]
[341141819,1730471442436,-151.0,0.0004185,14]
[341141821,1730471442445,-151.0,0.0004185,14]
[341141823,1730471442454,-151.0,0.0004185,14]
[341141825,1730471442464,-151.0,0.0004185,14]
[341141827,1730471442475,-500.0,0.0004185,3]
[341141829,1730471442484,-500.0,0.0004185,3]
[341141831,1730471442493,-151.0,0.0004185,14]
[341141833,1730471442503,-151.0,0.0004185,14]
[341141835,1730471442512,-500.0,0.0004185,3]
[341141837,1730471442521,-151.0,0.0004185,14]
[341141839,1730471442530,-500.0,0.0004185,3]
[341141841,1730471442539,-500.0,0.0004185,3]
[341141843,1730471442549,-170.0,0.0004185,3]
[341141845,1730471442558,-151.0,0.0004185,14]
[341141847,1730471442567,-500.0,0.0004185,3]
[341141849,1730471442576,-151.0,0.0004185,14]
[341141851,1730471442585,-238.387845,0.0004185,14]
[341141853,1730471442594,-151.0,0.0004185,14]
[341141855,1730471442603,-276.70994993,0.0004185,3]
[341141858,1730471442628,-223.29005007,0.0004185,3]
[341141860,1730471442637,-238.387845,0.0004185,14]
[341141862,1730471442647,-151.0,0.0004185,14]
[341141864,1730471442656,-592.95,0.0004185,3]
[341141866,1730471442666,-980.67,0.0004185,3]
[341141868,1730471442675,-500.0,0.0004185,3]
[341141870,1730471442687,-1167.89,0.0004185,3]
[341141872,1730471442697,-1204.55,0.0004185,3]
[341141874,1730471442707,-500.0,0.0004185,3]
[341141876,1730471442717,-500.0,0.0004185,3]
[341141878,1730471442726,-500.0,0.0004185,3]
[341141880,1730471442736,-500.0,0.0004185,3]
[341141882,1730471442745,-704.73,0.0004185,3]
[341141884,1730471442754,-829.99,0.0004185,3]
[341141886,1730471442763,-500.0,0.0004185,3]
[341141888,1730471442773,-548.11188313,0.0004185,3]
[341141890,1730471442783,-2220.69,0.0004185,3]
[341141892,1730471442792,-500.0,0.0004185,3]
[341141894,1730471442802,-500.0,0.0004185,3]
[341141896,1730471442811,-1235.62,0.0004185,3]
[341141898,1730471442821,-291.296312,0.0004185,14]
[341141900,1730471442830,-500.0,0.0004185,3]
[341141902,1730471442840,-500.0,0.0004185,3]
[341141904,1730471442849,-500.0,0.0004185,3]
[341141906,1730471442859,-500.0,0.0004185,3]